Cogmind - Beta 15 @@@ ROGUE MODE // 2025.10.06 @ 03:58:25 Player: shapeshifter Result: Self-destructed Performance ------------- Evolutions (2) 1000 Regions Visited (9) 1800 Robots Destroyed (184) 920 Value Destroyed (5613) 5613 Prototype IDs (35) 700 Alien Tech Used (0) 0 Bonus (1377) 1377 TOTAL SCORE: 11410 Bonus ------- High Alert Combat Kills 552 Follower Combat Kills 325 Entered Garrisons 200 Aligned with FarCom 300 Cogmind --------- Core Integrity 131/550 Matter 232/300 Energy 150/150 System Corruption 2% Temperature Cool (82) Movement Treading (250) Ox1 Location -8/Materials Parts ------- > --- POWER (1) -------- Light Angular Momentum Engine > --- PROPULSION (3) --- Armored Treads Armored Treads Armored Treads > --- UTILITY (4) ------ Cooling System Huge Storage Unit Improved Medium Armor Plating > --- WEAPON (3) ------- Heavy Particle Gun Heavy Particle Gun Rocket Launcher > --- INVENTORY (25) --- Light Treads Large Storage Unit High-capacity Battery (250) High-capacity Battery (250) Improved Medium Armor Plating Improved Medium Armor Plating Authchip [R/Combat] Authchip [R/Combat] Authchip [R/Combat] Authchip [R/Combat] Authchip [R/Combat] Authchip [R/Combat] Authchip [R/Combat] Authchip [R/Combat] Authchip [R/Combat] Trap Extractor (4/4 Tiamat Bomb) Trap Reconfigurator Chronowheel Beamcaster YOLO Cannon Enhanced Autogun Enhanced Autogun Grenade Launcher Peak State ------------ > --- POWER ------------ Light Angular Momentum Engine > --- PROPULSION ------- Armored Treads Armored Treads Armored Treads > --- UTILITY ---------- Cooling System Huge Storage Unit Improved Medium Armor Plating Shield Generator > --- WEAPON ----------- Heavy Particle Gun YOLO Cannon > --- INVENTORY -------- Light Treads Large Storage Unit High-capacity Battery High-capacity Battery Improved Medium Armor Plating Improved Medium Armor Plating Authchip [R/Combat] Authchip [R/Combat] Authchip [R/Combat] Authchip [R/Combat] Authchip [R/Combat] Authchip [R/Combat] Authchip [R/Combat] Authchip [R/Combat] Authchip [R/Combat] Trap Extractor Trap Reconfigurator Chronowheel Beamcaster Enhanced Autogun Enhanced Autogun Grenade Launcher Rocket Launcher [Rating: 55] Favorites ----------- Power Cooled Ion Engine Engine Cooled Ion Engine Power Core Nuclear Core Propulsion Light Treads Treads Light Treads Wheel Wheel Utility Cooling System Device Cooling System Storage Large Storage Unit Processor Advanced Visual Processing Unit Hackware Hacking Suite Protection Improved Medium Armor Plating Weapon Spread Laser Energy Gun Spread Laser Energy Cannon Advanced Beam Cannon Ballistic Gun Light Assault Rifle Launcher Rocket Launcher Build | -11 -10 -10 -9 -9 -9 -8 -8 -8 -8 ------- Run | Yrd Mat Min Mat Min Exi Min Mat Gar Mat Slots Evolved 4 | . . . 2 . . . 2 . . Power . | . . . . . . . . . . Propulsion 1 | . . . . . . . 1 . . Utility 2 | . . . 1 . . . 1 . . Weapon 1 | . . . 1 . . . . . . Parts Attached 95 | 7 7 1 40 2 1 . 24 11 2 Power 11 | 1 2 . 6 . . . . 2 . Engine 8 | 1 1 . 5 . . . . 1 . Core 3 | . 1 . 1 . . . . 1 . Reactor . | . . . . . . . . . . Propulsion 27 | 2 2 . 9 1 1 . 8 4 . Treads 16 | 2 2 . 8 1 . . . 3 . Leg . | . . . . . . . . . . Wheel 11 | . . . 1 . 1 . 8 1 . Hover . | . . . . . . . . . . Flight . | . . . . . . . . . . Utility 26 | 2 1 . 10 . . . 8 4 1 Device 15 | 1 . . 7 . . . 3 3 1 Storage 3 | 1 1 . . . . . 1 . . Processor 1 | . . . . . . . 1 . . Hackware 1 | . . . . . . . 1 . . Protection 6 | . . . 3 . . . 2 1 . Artifact . | . . . . . . . . . . Weapon 31 | 2 2 1 15 1 . . 8 1 1 Energy Gun 18 | . . . 10 1 . . 6 1 . Energy Cannon 4 | . . . 3 . . . . . 1 Ballistic Gun 8 | 2 2 1 2 . . . 1 . . Ballistic Cannon . | . . . . . . . . . . Launcher 1 | . . . . . . . 1 . . Special Weapon . | . . . . . . . . . . Impact Weapon . | . . . . . . . . . . Slashing Weapon . | . . . . . . . . . . Piercing Weapon . | . . . . . . . . . . Special Melee Weapon . | . . . . . . . . . . Unidentified Prototypes 9 | . . . 6 . . . 3 . . Parts Lost 16 | . . . 4 . . . 6 5 1 Power 2 | . . . 1 . . . 1 . . Propulsion 4 | . . . 1 . . . 1 2 . Utility 5 | . . . 2 . . . . 2 1 Weapon 5 | . . . . . . . 4 1 . Highest Loss Streak 2 | . . . 2 . . . 2 2 1 To Critical Strikes . | . . . . . . . . . . Average Backups 16 | 4 9 14 14 14 14 14 18 22 23 Power 1 | . . . 1 2 2 2 1 . . Propulsion 2 | 1 2 5 3 2 1 . . 1 . Utility 6 | . 2 3 3 5 5 8 8 13 15 Weapon 5 | 1 2 5 6 5 5 3 7 6 5 Tool/Special . | . . . . . . . . . . Unused Backups 51 | . 3 . 14 1 3 . 9 2 19 Power 3 | . . . 3 . . . . . . Propulsion 6 | . . . 2 . . . 3 . 1 Utility 30 | . 2 . 5 1 . . 5 2 15 Weapon 11 | . 1 . 4 . 3 . 1 . 2 Tool/Special 1 | . . . . . . . . . 1 Average Slot Usage (%) 97 | . 100 100 97 100 100 100 93 97 98 Engine 7 | . 7 . 10 11 11 11 2 6 9 Core 3 | . 6 14 . . . . 6 2 . Treads 16 | . 28 28 21 22 12 . . 17 27 Wheel 7 | . . . . . 9 22 22 8 . Device 15 | . 14 14 9 22 22 22 12 16 17 Storage 10 | . 14 14 11 11 11 11 9 9 9 Hackware 1 | . . . . . . . 5 . . Protection 5 | . . . 10 . . . 4 9 9 Energy Gun 22 | . . . 22 33 33 33 24 26 26 Energy Cannon 1 | . . . 5 . . . . . . Ballistic Gun 5 | . 28 28 3 . . . . . . Peak Build Rating 55 | 7 10 10 21 23 25 25 38 52 55 Average Rating 25 | 5 8 10 16 20 22 25 33 43 48 On Entrance 20 | . 7 10 10 20 21 25 25 38 52 Naked Turns . | . . . . . . . . . . Heaviest Build 110 | 13 28 28 41 43 41 41 109 110 110 Greatest Support 60 | 40 40 40 43 43 43 24 42 60 60 Greatest Overweight (x) 10 | . . . 1 . 1 1 5 10 1 Average Overweight (x) . | . . . . . . 1 2 2 1 Largest Inventory Capacity 25 | 8 15 15 15 15 15 15 25 25 25 Average Capacity 17 | 7 10 15 15 15 15 15 22 25 25 Most Carried 25 | 7 13 15 15 15 15 15 25 25 25 Average Carried 16 | 4 9 14 14 14 14 15 19 23 24 Final Capacity 25 | 8 15 15 15 15 15 15 25 25 25 Final Carried 25 | 6 13 15 14 15 15 15 25 23 24 Class Distribution -------------------- 40% | Skirmisher 21% | Gunner 17% | Mutant 14% | Tank 3% | Scavenger-Mutant Dominant Class ---------------- Mutant | -10/Materials Scavenger-Mutant | -10/Mines Tank | -9/Materials Gunner | -9/Mines Gunner | -9/Exiles Skirmisher | -8/Mines Skirmisher | -8/Materials Skirmisher | -8/Garrison Skirmisher | -8/Materials Resources | -11 -10 -10 -9 -9 -9 -8 -8 -8 -8 ----------- Run | Yrd Mat Min Mat Min Exi Min Mat Gar Mat Matter Collected 1923 | 276 188 30 787 99 . 20 284 198 41 Remotely 176 | . . . 176 . . . . . . Salvage Created 6177 | 146 529 36 1509 599 . 160 2020 1001 177 Parts 385 | 9 38 8 102 42 . 15 108 50 13 Haulers Intercepted 10 | . 1 . 4 . . . 4 . 1 Recyclers Shooed 2 | . 1 . 1 . . . . . . Parts Field Recycled . | . . . . . . . . . . Retrieved Matter . | . . . . . . . . . . Parts Self-Destructed . | . . . . . . . . . . Prevented . | . . . . . . . . . . Kills | -11 -10 -10 -9 -9 -9 -8 -8 -8 -8 ------- Run | Yrd Mat Min Mat Min Exi Min Mat Gar Mat Combat Hostiles Destroyed 130 | . 14 3 34 17 . 7 30 21 4 Guns 117 | . 14 3 32 17 . 7 23 20 1 Cannons 2 | . . . 2 . . . . . . AOE 9 | . . . . . . . 6 . 3 Classes Destroyed 14 | 2 4 . 4 2 . . 1 1 . Worker 6 | . . . 1 1 . . 3 . 1 Builder 4 | . . . . 1 . . 2 . 1 Tunneler 9 | 3 . . . 3 . . 3 . . Hauler 10 | . 1 . 4 . . . 4 . 1 Recycler 11 | 1 . . 4 2 . . 4 . . Operator 3 | . . . 2 . . . 1 . . Watcher 11 | . 1 . 5 . . . 5 . . Swarmer 46 | . 6 3 10 7 . 4 10 4 2 Grunt 52 | . 8 . 14 9 . 2 8 10 1 Brawler 2 | . . . 1 . . . . 1 . Duelist 3 | . . . . 1 . 1 1 . . Sentry 23 | . . . 9 . . . 9 4 1 Hunter 2 | . . . . . . . 2 . . Programmer 2 | . . . . . . . . 2 . Best Kill Streak 6 | 2 5 3 5 5 . 4 5 6 5 Combat Bots Only 6 | . 5 3 5 4 . 4 4 6 3 Max Kills in Single Turn 3 | 1 2 1 2 2 . 1 2 2 3 Gunslinging 1 | . 1 . . 1 . . 1 1 . Exploded 3 | . . . . . . . 2 . 3 Melee . | . . . . . . . . . . Uniques/NPCs Destroyed . | . . . . . . . . . . Combat | -11 -10 -10 -9 -9 -9 -8 -8 -8 -8 -------- Run | Yrd Mat Min Mat Min Exi Min Mat Gar Mat Hostile Shots Fired 532 | . 78 15 135 34 . 17 117 95 41 Missed 165 | . 31 6 34 4 . 7 45 24 14 Hits 367 | . 47 9 101 30 . 10 72 71 27 Melee 1 | . . . . . . . 1 . . Projectile 366 | . 47 9 101 30 . 10 71 71 27 AOE 1 | . . . . . . . . 1 . Critical Strikes 7 | . . . 3 . . . 2 2 . Damage Taken 4960 | . 489 83 1303 303 . 101 1118 1045 518 Core 728 | . 106 15 153 21 . 14 238 163 18 Absorbed by Shields 32 | . . . . . . . . . 32 Redirected to Shielding 25 | . . . 25 . . . . . . Core Remaining (%) 68 | 100 . 51 . . . 53 . . . Volleys Fired 383 | 8 55 9 92 32 . 11 92 72 12 Largest 3 | 2 2 2 3 3 . 3 3 3 3 Hottest 205 | 40 40 40 204 195 . 195 205 165 165 Shots Fired 965 | 16 110 18 250 86 . 33 222 201 29 Gun 936 | 16 110 18 230 86 . 33 217 201 25 Cannon 21 | . . . 20 . . . . . 1 Launcher 8 | . . . . . . . 5 . 3 Special . | . . . . . . . . . . Kinetic 242 | 16 110 18 98 . . . . . . Thermal 578 | . . . 152 86 . 33 80 201 26 Explosive 8 | . . . . . . . 5 . 3 Electromagnetic 137 | . . . . . . . 137 . . Robot Hit Streak 29 | 5 8 7 9 10 . 6 11 29 4 Robot Miss Streak 10 | 1 4 3 10 8 . 4 7 6 4 Penetration Max . | . . . . . . . . . . Secondary Targets 27 | . 5 1 3 6 . 1 5 6 . Max Gunslinging Chain 1 | . 1 1 1 1 . 1 1 1 . Shots Hit Robots 574 | 10 66 11 159 59 . 24 142 91 12 Core Hits 469 | 8 32 6 157 91 . 33 97 37 8 Critical Kills 3 | . 2 . 1 . . . . . . Critical Parts Destroyed 1 | . 1 . . . . . . . . Critical Strikes 10 | . 3 . 1 . . . 2 4 . Burn 6 | . . . . . . . 2 4 . Meltdown 1 | . . . 1 . . . . . . Destroy 3 | . 3 . . . . . . . . Melee Attacks . | . . . . . . . . . . Impact . | . . . . . . . . . . Slashing . | . . . . . . . . . . Piercing . | . . . . . . . . . . Sneak Attacks . | . . . . . . . . . . Combat Hostiles . | . . . . . . . . . . Follow-up Attacks . | . . . . . . . . . . Damage Inflicted 10033 | 79 581 88 2232 774 . 291 3267 2109 612 Guns 8532 | 79 581 88 1785 774 . 285 2584 2109 247 Cannons 164 | . . . 164 . . . . . . Explosions 1319 | . . . 271 . . . 683 . 365 Melee . | . . . . . . . . . . Ramming 18 | . . . 12 . . 6 . . . Kinetic 1164 | 79 581 88 416 . . . . . . Thermal 6503 | . . . 1804 774 . 285 1284 2109 247 Explosive 677 | . . . . . . . 312 . 365 Electromagnetic 1671 | . . . . . . . 1671 . . Impact . | . . . . . . . . . . Slashing . | . . . . . . . . . . Piercing . | . . . . . . . . . . Highest Corruption 2 | . . . . . . . 1 2 2 Average Corruption 1 | . . . . . . . 1 1 2 Corruption Purged . | . . . . . . . . . . Corruption Blocked . | . . . . . . . . . . Effects 25 | . . . . . . . . 20 5 Message Errors 7 | . . . . . . . . 5 2 Matter Fused 4 | . . . . . . . . 3 1 Heat Flow Errors 2 | . . . . . . . . 1 1 Energy Discharges 3 | . . . . . . . . 3 . Data Loss (minor) 3 | . . . . . . . . 3 . Data Loss (major) 1 | . . . . . . . . 1 . Misfires 4 | . . . . . . . . 3 1 Alerts 1 | . . . . . . . . 1 . Overload Shots . | . . . . . . . . . . Overflow Damage 139 | . . . 124 . . . 15 . . Projectiles . | . . . . . . . . . . Explosions 139 | . . . 124 . . . 15 . . Melee . | . . . . . . . . . . Knockbacks . | . . . . . . . . . . Impact . | . . . . . . . . . . Kinetic . | . . . . . . . . . . Secondary . | . . . . . . . . . . Self-Inflicted Damage 429 | . . . 201 . . 3 122 . 103 Shots 7 | . . . 2 . . . 3 . 2 Rammed 3 | . . . 2 . . 1 . . . Targets Rammed 3 | . . . 2 . . 1 . . . Kicked . | . . . . . . . . . . Crushed . | . . . . . . . . . . Highest Temperature 548 | . 28 8 548 16 . 6 328 313 111 Average Temperature 89 | . 8 3 126 7 . 3 76 71 40 Received Heat Transfer 1860 | . 228 . 396 120 . 27 414 471 204 Effects 11 | . . . 11 . . . . . . Shutdowns 2 | . . . 2 . . . . . . Interference 7 | . . . 7 . . . . . . Matter Decay 1 | . . . 1 . . . . . . Damage (minor) 1 | . . . 1 . . . . . . Siege Activations . | . . . . . . . . . . Martial Activations . | . . . . . . . . . . Shielding Activations . | . . . . . . . . . . Robots Disrupted 1 | . . . . . . . 1 . . Combat Hostiles 1 | . . . . . . . 1 . . Robots Corrupted 1 | . . . . . . . 1 . . Combat Hostiles 1 | . . . . . . . 1 . . Parts Fried 9 | . . . . . . . 9 . . Impact Corruptions . | . . . . . . . . . . Robots Melted 2 | . . . 1 . . . . 1 . Combat Hostiles 1 | . . . . . . . . 1 . Parts Melted 18 | . . . 4 . . 1 5 8 . Heat Transferred 9833 | . . . 2173 980 . 355 2094 3787 444 Parts Sabotaged . | . . . . . . . . . . Parts Stolen . | . . . . . . . . . . Parts Stripped . | . . . . . . . . . . Power Chain Reactions 7 | . . . . . . . 7 . . Alert | -11 -10 -10 -9 -9 -9 -8 -8 -8 -8 ------- Run | Yrd Mat Min Mat Min Exi Min Mat Gar Mat Maximum Alert Level 4 | . . . 2 1 . . 2 4 3 Low Security (%) 40 | 100 100 100 40 45 . 100 13 . . Level 1 27 | . . . 30 54 . . 64 7 . Level 2 14 | . . . 29 . . . 21 15 24 Level 3 10 | . . . . . . . . 40 75 Level 4 7 | . . . . . . . . 36 . Level 5 . | . . . . . . . . . . High Security . | . . . . . . . . . . Max Security . | . . . . . . . . . . Peak Influence 1553 | 10 100 60 513 327 . 120 457 1553 769 Initial 756 | . . 15 . 187 . . . 291 756 Average 376 | . 35 11 289 214 . 40 296 994 725 Influence Increases 4822 | 20 428 70 1122 416 . 160 1101 1352 153 Destroy 0b10 Robot/C 2780 | . 280 60 680 340 . 140 600 600 80 Destroy 0b10 Robot/NC 285 | 20 10 . 80 35 . . 110 15 15 Destroy Leader 532 | . 54 10 188 40 . 20 178 20 22 Allied During Kill 38 | . . . . 1 . . . 37 . Successful Hack 62 | . 24 . 35 . . . 3 . . Select Force Hacks 60 | . 60 . . . . . . . . Disable Machine 195 | . . . 45 . . . 75 75 . Anti-Garrison Action 550 | . . . . . . . . 550 . Destroy Structure 185 | . . . 49 . . . 90 10 36 Lose Combat Pursuer 135 | . . . 45 . . . 45 45 . Influence Decreases 4053 | 20 388 110 640 749 149 160 653 247 937 Entered New Map 1423 | . . 25 . 295 149 . . 157 797 Time Decay 2400 | 20 388 85 600 434 . 160 583 . 130 Lost Part 160 | . . . 40 . . . 60 50 10 Lost Ally 70 | . . . . 20 . . 10 40 . Squads Dispatched 10 | . 3 . 2 . . . 4 . 1 Investigation 2 | . 2 . . . . . . . . Extermination . | . . . . . . . . . . Reinforcement 6 | . 1 . 2 . . . 3 . . Assault . | . . . . . . . . . . Garrison 2 | . . . . . . . 1 . 1 Intercept . | . . . . . . . . . . Searches Triggered . | . . . . . . . . . . Construction Impeded 1 | . . . 1 . . . . . . Haulers Reinforced . | . . . . . . . . . . Active Scanning Responses . | . . . . . . . . . . Cargo Convoy Interrupts . | . . . . . . . . . . Stealth | -11 -10 -10 -9 -9 -9 -8 -8 -8 -8 --------- Run | Yrd Mat Min Mat Min Exi Min Mat Gar Mat Distress Signals 15 | . . . 5 1 . . 8 . 1 Communications Jammed . | . . . . . . . . . . Distress Signals . | . . . . . . . . . . Times Spotted 190 | . 20 4 49 17 . 7 49 32 12 Peak Tracking Total 9 | . 3 3 5 4 . 4 5 5 9 Tactical Retreats 5 | . . . 2 . . . 1 2 . Traps | -11 -10 -10 -9 -9 -9 -8 -8 -8 -8 ------- Run | Yrd Mat Min Mat Min Exi Min Mat Gar Mat Traps Triggered 13 | . . . 3 . . . 1 9 . Indirectly . | . . . . . . . . . . Trap Hack Attempts . | . . . . . . . . . . Triggered . | . . . . . . . . . . Disarmed . | . . . . . . . . . . Reprogrammed . | . . . . . . . . . . Reused . | . . . . . . . . . . Traps Reconfigurated 1 | . . . . . . . . 1 . Traps Extracted . | . . . . . . . . . . Installed . | . . . . . . . . . . Triggered . | . . . . . . . . . . Most Traps Carried 4 | . . . . . . . . 4 4 Machines | -11 -10 -10 -9 -9 -9 -8 -8 -8 -8 ---------- Run | Yrd Mat Min Mat Min Exi Min Mat Gar Mat Machines Disabled 18 | . . . 3 . . . 5 10 . Max in Single Turn 2 | . . . 2 . . . 2 1 . Garrison Relay 5 | . . . . . . . . 5 . Machines Repaired . | . . . . . . . . . . Machines Dismantled . | . . . . . . . . . . Machines Sabotaged . | . . . . . . . . . . Overloaded Fab Kills . | . . . . . . . . . . Hacking | -11 -10 -10 -9 -9 -9 -8 -8 -8 -8 --------- Run | Yrd Mat Min Mat Min Exi Min Mat Gar Mat Machines Accessed 32 | . 8 . 10 . 2 . 8 4 . Terminals 24 | . 6 . 9 . . . 5 4 . Fabricators . | . . . . . . . . . . Repair Stations . | . . . . . . . . . . Recycling Units 5 | . 2 . 1 . . . 2 . . Scanalyzers . | . . . . . . . . . . Garrison Access 1 | . . . . . . . 1 . . Total Hacks 75 | . 22 . 26 . 2 . 18 7 . Successful 43 | . 14 . 14 . 2 . 12 1 . Failed 31 | . 8 . 11 . . . 6 6 . Catastrophic 6 | . 1 . 2 . . . 2 1 . Database Lockouts 1 | . . . 1 . . . . . . Manual 44 | . 13 . 16 . 1 . 14 . . Terminals 63 | . 18 . 24 . . . 14 7 . Fabricators . | . . . . . . . . . . Repair Stations . | . . . . . . . . . . Recycling Units 8 | . 4 . 2 . . . 2 . . Scanalyzers . | . . . . . . . . . . Garrison Access 2 | . . . . . . . 2 . . Terminal Hacks 16 | . 5 . 7 . 2 . 1 1 . Record 2 | . 1 . . . 1 . . . . Robot Analysis 1 | . 1 . . . . . . . . Prototype ID Bank 2 | . . . 2 . . . . . . Branch Access Points 1 | . . . 1 . . . . . . Alert Level 1 | . 1 . . . . . . . . Locate Traps 1 | . . . 1 . . . . . . Hauler Manifests 1 | . 1 . . . . . . . . Registered Components 1 | . . . 1 . . . . . . Zone Layout 4 | . 1 . 2 . . . 1 . . Security Stations 1 | . . . . . . . . 1 . Proto ID Catalog 1 | . . . . . 1 . . . . Fabricator Hacks . | . . . . . . . . . . Repair Station Hacks . | . . . . . . . . . . Recycling Unit Hacks 4 | . 1 . 1 . . . 2 . . Retrieve Components 4 | . 1 . 1 . . . 2 . . Scanalyzer . | . . . . . . . . . . Garrison Access Hacks 1 | . . . . . . . 1 . . Unlock Access 1 | . . . . . . . 1 . . Unauthorized Hacks 22 | . 8 . 6 . . . 8 . . Terminals 20 | . 6 . 6 . . . 8 . . Assimilate 1 | . . . . . . . 1 . . Botnet 4 | . 1 . 1 . . . 2 . . Skim 15 | . 5 . 5 . . . 5 . . Fabricators . | . . . . . . . . . . Repair Stations . | . . . . . . . . . . Recycling Units 2 | . 2 . . . . . . . . Tunnel 2 | . 2 . . . . . . . . Scanalyzers . | . . . . . . . . . . Garrison Access . | . . . . . . . . . . Data Cores Recovered 1 | . . . 1 . . . . . . Used . | . . . . . . . . . . Hacking Detections 23 | . 5 . 9 . . . 6 3 . Full Trace Events 2 | . . . . . . . . 2 . Feedback Events . | . . . . . . . . . . Feedback Blocked . | . . . . . . . . . . Robot Schematics Acquired . | . . . . . . . . . . Robots Built . | . . . . . . . . . . Authchips . | . . . . . . . . . . Time . | . . . . . . . . . . Total Robot Build Rating . | . . . . . . . . . . Part Schematics Acquired . | . . . . . . . . . . Parts Built . | . . . . . . . . . . Authchips . | . . . . . . . . . . Time . | . . . . . . . . . . Total Part Build Rating . | . . . . . . . . . . Parts Repaired . | . . . . . . . . . . Time . | . . . . . . . . . . Parts Recycled . | . . . . . . . . . . Recycled Matter . | . . . . . . . . . . Retrieved Matter . | . . . . . . . . . . Retrieved Components 30 | . 9 . 10 . . . 11 . . Parts Scanalyzed . | . . . . . . . . . . Part Schematics Acquired . | . . . . . . . . . . Parts Damaged . | . . . . . . . . . . Bothacking | -11 -10 -10 -9 -9 -9 -8 -8 -8 -8 ------------ Run | Yrd Mat Min Mat Min Exi Min Mat Gar Mat Used RIF Installer . | . . . . . . . . . . Robots Hacked . | . . . . . . . . . . Non-combat . | . . . . . . . . . . Combat . | . . . . . . . . . . Robot Hacks Applied . | . . . . . . . . . . Relay Couplers Released 20 | . . . . . . . . 20 . Machine Destruction 20 | . . . . . . . . 20 . Fabnet Peak Effective % . | . . . . . . . . . . Robots Rewired 2 | . . . . . . . . 2 . Allies Hacked 1 | . . . . . . . . 1 . Hacks Repelled . | . . . . . . . . . . Allies | -11 -10 -10 -9 -9 -9 -8 -8 -8 -8 -------- Run | Yrd Mat Min Mat Min Exi Min Mat Gar Mat Total Allies 4 | . . . . 1 . . 1 2 . Largest Group 2 | . . . . 1 . . 1 2 . Highest-Rated Group 70 | . . . . 31 . . 10 70 . Highest-Rated Ally 39 | . . . . 31 . . 10 39 . Initial Warlord ECA Mod 9 | . . . . . . . . . 9 Total Orders . | . . . . . . . . . . Ally Attacks 45 | . . . . 4 . . . 41 . Total Damage 671 | . . . . 22 . . . 649 . Kills 9 | . . . . . . . . 9 . Allies Corrupted . | . . . . . . . . . . Allies Melted . | . . . . . . . . . . Intel | -11 -10 -10 -9 -9 -9 -8 -8 -8 -8 ------- Run | Yrd Mat Min Mat Min Exi Min Mat Gar Mat Active Infowar (turns) 2373 | 3 1175 375 83 . . . 737 . . Optics 737 | . . . . . . . 737 . . Seismic 1636 | 3 1175 375 83 . . . . . . Robot Analysis Total 1 | . 1 . . . . . . . . Derelict Logs Recovered 1 | . . . . 1 . . . . . Drone Launches . | . . . . . . . . . . Drone Recoveries . | . . . . . . . . . . Exploration | -11 -10 -10 -9 -9 -9 -8 -8 -8 -8 ------------- Run | Yrd Mat Min Mat Min Exi Min Mat Gar Mat Turns Passed 9672 | 160 1175 375 1993 1067 500 467 1802 1867 266 Spaces Moved 5131 | 88 628 206 936 586 368 402 1070 763 84 Core 19 | 19 . . . . . . . . . Treads 3136 | 69 628 206 936 586 184 . . 443 84 Legs . | . . . . . . . . . . Wheels 1976 | . . . . . 184 402 1070 320 . Hover . | . . . . . . . . . . Flight . | . . . . . . . . . . Fastest Speed 50 | 50 160 160 160 160 105 105 105 116 250 Average Speed 153 | 136 160 160 161 160 132 105 123 201 250 Slowest Speed 250 | 160 160 160 240 160 160 105 155 250 250 Overloaded Moves . | . . . . . . . . . . Propulsion Burnouts . | . . . . . . . . . . Robots Hopped . | . . . . . . . . . . Potential Cave-ins . | . . . . . . . . . . Cave-ins Triggered . | . . . . . . . . . . Exploration Rate (%) 62 | 6 82 34 90 98 69 83 72 86 9 Regions Visited 9 Branch Regions 4 Pre-discovered Areas 8 | . 3 . 3 . 1 . 1 . . Known Exits Taken 4 | . . 1 1 . . 1 1 . . Unknown Exits Taken 4 | 1 1 . . 1 1 . . . . Scrap Searched 2 | . . 1 . 1 . . . . . Spaces Dug 6 | . . . . . . . . . 6 Terrain Destroyed 178 | . . . 56 . . . 90 . 32 Melee . | . . . . . . . . . . Projectile 3 | . . . . . . . 2 . 1 AOE 175 | . . . 56 . . . 88 . 31 Terrain Rammed . | . . . . . . . . . . Walls Destroyed . | . . . . . . . . . . Machines Disabled . | . . . . . . . . . . Actions | -11 -10 -10 -9 -9 -9 -8 -8 -8 -8 --------- Run | Yrd Mat Min Mat Min Exi Min Mat Gar Mat Total 6225 | 115 715 238 1258 650 384 422 1379 946 118 Wait 288 | . 2 20 75 21 . 9 120 35 6 Move 5123 | 87 627 205 935 585 367 401 1070 762 84 Hop . | . . . . . . . . . . Pick Up 146 | 13 13 2 50 3 7 . 39 13 6 Fast Attach 10 | . . . 7 . . . 3 . . Attach 46 | 7 . . 14 . 2 . 13 6 4 Detach 1 | . . . . . . . 1 . . Swap 67 | . 7 1 29 5 . . 15 9 1 Drop 119 | . 11 1 54 4 8 . 26 10 5 Fire 383 | 8 55 9 92 32 . 11 92 72 12 Melee . | . . . . . . . . . . Ram 1 | . . . . . . 1 . . . Kick . | . . . . . . . . . . Crush 2 | . . . 2 . . . . . . Escape Stasis 26 | . . . . . . . . 26 . Rewire 13 | . . . . . . . . 13 . Trap . | . . . . . . . . . . Miscellaneous . | . . . . . . . . . . Route ------- -11/Scrapyard -10/Materials (discovered 5 exits: *Mat x3 / [*Min] / Sub) -10/Mines (discovered 2 exits: *Mat x2) -9/Materials (discovered 5 exits: *Mat x3 / *Min x2) -9/Mines (discovered 4 exits: *Mat x2 / *Exi / [*Zio]) -9/Exiles -8/Mines (discovered 2 exits: *Mat x2) -8/Materials (discovered 3 exits: *Fac x2 / Gar) -8/Garrison (discovered 3 exits: *Mat x3) -8/Materials History --------- Turn | Location | Event 3 | -11/Scrapyard | Discovered new exit (range 15) 161 | -11/Scrapyard | Entered Materials 235 | -10/Materials | Discovered new exit (range 10) 312 | -10/Materials | Build established: Mutant 649 | -10/Materials | Discovered new exit (range 7) 681 | -10/Materials | Discovered new exit (range 15) 858 | -10/Materials | Discovered new exit (range 16) 991 | -10/Materials | Learned location of 1 exit from Storage 1051 | -10/Materials | Identified exit to Materials 1051 | -10/Materials | Identified exit to Subcaves 1144 | -10/Materials | Learned Storage trap positions 1237 | -10/Materials | Learned Storage trap positions 1333 | -10/Materials | Learned location of Mines (-10) 1336 | -10/Materials | Entered Mines 1711 | -10/Mines | Entered Materials 1711 | -9/Materials | Evolved 2 slots: Utility x1, Weapon x1 1712 | -9/Materials | Identified exit to Materials 2396 | -9/Materials | Build established: Tank 2896 | -9/Materials | Discovered exit to Materials (range 3) 2898 | -9/Materials | Learned Recycling recycling unit intel 3065 | -9/Materials | Central database locked down 3152 | -9/Materials | Discovered exit to Materials (range 10) 3172 | -9/Materials | Learned Storage garrison access intel 3199 | -9/Materials | Identified exit to Mines 3286 | -9/Materials | Loaded intel: 18 trap records 3412 | -9/Materials | Learned location of Storage (-7) 3550 | -9/Materials | Build established: Gunner 3704 | -9/Materials | Entered Mines 3893 | -9/Mines | Received a Rocket Launcher from a helpful Derelict 4076 | -9/Mines | Found a Scrap Suit stashed away for nefarious purposes 4191 | -9/Mines | Learned location of 1 exit from Materials 4255 | -9/Mines | Received a Mining Laser from a helpful Derelict 4471 | -9/Mines | A Derelict revealed a hidden shortcut to a safe place 4537 | -9/Mines | Excavation squad dispatched 4537 | -9/Mines | A large section of the Mines collapsed 4764 | -9/Mines | Deemed a non-threat by the Exiles lab entrance 4764 | -9/Mines | Discovered new exit (range 5) 4771 | -9/Mines | Entered Exiles 4811 | -9/Exiles | Met 8R-AWN 4843 | -9/Exiles | Met EX-HEX 4935 | -9/Exiles | Met EX-DEC 4960 | -9/Exiles | Learned location of Zion (-7) 5066 | -9/Exiles | Met EX-BIN 5084 | -9/Exiles | Aligned with FarCom system 5085 | -9/Exiles | Given EX-Vault access code 5109 | -9/Exiles | Opened EX-Vault 5116 | -9/Exiles | Found YOLO Cannon 5124 | -9/Exiles | Found Trap Reconfigurator 5127 | -9/Exiles | Found Chronowheel 5155 | -9/Exiles | Warned to stay clear of 0b10 Research branches 5262 | -9/Exiles | Discovered new exit (range 10) 5271 | -9/Exiles | Stole three prototypes: Trap Reconfigurator, Chronowheel, YOLO Cannon 5271 | -9/Exiles | Entered Mines 5565 | -8/Mines | Build established: Skirmisher 5738 | -8/Mines | Entered Materials 5738 | -8/Materials | Evolved 2 slots: Propulsion x1, Utility x1 5739 | -8/Materials | Identified exit to Factory 7202 | -8/Materials | Discovered exit to Factory (range 16) 7400 | -8/Materials | Garrison activated, responded to threat 7540 | -8/Materials | Identified exit to Garrison 7540 | -8/Materials | Entered Garrison 7541 | -8/Garrison | Identified exit to Materials 7668 | -8/Garrison | Triggered checkpoint 7756 | -8/Garrison | Core integrity fell below 50% 7886 | -8/Garrison | Triggered checkpoint 8000 | -8/Garrison | Discovered exit to Materials (range 12) 8041 | -8/Garrison | Garrison Relay disabled 8334 | -8/Garrison | Garrison Relay disabled 8610 | -8/Garrison | Triggered checkpoint 8702 | -8/Garrison | Triggered checkpoint 8727 | -8/Garrison | Garrison Relay disabled 8785 | -8/Garrison | Discovered exit to Materials (range 10) 8815 | -8/Garrison | Learned Materials security intel 8930 | -8/Garrison | Triggered checkpoint 9048 | -8/Garrison | Triggered checkpoint 9115 | -8/Garrison | Garrison Relay disabled 9119 | -8/Garrison | Garrison Relay disabled 9407 | -8/Garrison | Entered Materials 9657 | -8/Materials | Garrison activated, responded to threat 9673 | -8/Materials | Self-destructed Last Messages --------------- 09656_ W-25 Informer sends out distress signal. 09656_ U-05 Engineer lays Concrete. 09657_ G-50 Soldier calls for garrison reinforcements. 09657_ ALERT: Activating Garrison Access M001. 09657_ U-05 Engineer destroyed. 09657_ U-05 Engineer lays Concrete. 09663_ U-05 Engineer builds a Wall. 09663_ Dropped Hvy. Particle Gun. 09664_ U-05 Engineer lays Concrete. 09667_ U-05 Engineer destroyed. 09668_ Shield Generator destroyed. 09668_ K-01 Serf collects debris. 09669_ K-01 Serf destroyed. 09670_ System corrupted: Heat flow error (+139). 09670_ U-05 Engineer lays Concrete. 09671_ K-01 Serf collects debris. 09671_ S-10 Pest destroyed. 09671_ G-47 Trooper destroyed. 09671_ S-10 Pest destroyed. 09672_ U-05 Engineer builds a Wall. Map ----- +----------------------------------------------------+ | ???????????????????????????# # # | | ???????????????????????????# ######### | | ???????????????????????????# # # | | ???????????????????????????# # " # | | ???????????????????????????# # "" # | | ???????????????????????????# # "" # | | ???????????????????????????# # """ # | | ???????????????????????????# + "" # | | ???????????????????????????# # """ # | | ???????????????????????????### # """ # | | ?????????????????????????????# # """ ? | | ?????????????????????????????# # " ? | | ?????????????????????????????# # # | | ?????????????????????????????# ######### | | ???????????????????????????### ###? # | | ???????????????????????????#! # *!! # | | ??????????????????##########!=! # *!! # | | ????????????????# """ """ r%! % + !!! # | | ???????????## #?# """ """ ##!= # # | | ??????????? H# """ ""t##! # # | | ?????????? g w w ####+###? # | | ????????????????# [ ## #? # | | ????????????????# ## #?? # | | ????????????????# %| # #?? # | | ????????????????# u g k #??? # | | ????????????????##### @ k #??? # | | ????????????? |=%! # #????## | | ???????????# % # #?????? | | ???????????####+## =!=g ########?????? | | ??????????????? #????????????? | | ?????????????[ s% k #????????????? | | ????????????# """ #????????????? | | ????????????#? G" ###????????????? | | ????????????????"" # ???????????????? | | ???????????????? ## ##???????????????? | | ????????????????##??# ?????????????????? | | ????????????????????#a?????????????????? | | ????????????????????#w?????????????????? | | ???????????????????????????????????????? | | ???????????????????????????????????????? | | ???????????????????????????????????????? | | ???????????????????????????????????????? | | ???????????????????????????????????????? | | ???????????????????????????????????????? | | ???????????????????????????????????????? | | ???????????????????????????????????????? | | ???????????????????????????????????????? | | ???????????????????????????????????????? | | ???????????????????????????????????????? | | ???????????????????????????????????????? | +----------------------------------------------------+ Best States ------------- Heat Dissipation 75 Energy Generation 18 Energy Capacity 280 Matter Stores 300 Matter Capacity 300 Sight Range 20 Terrain Scan Density 10 Armor Coverage 225 Core Shielding 20 Evasion (%) 50 Recoil Reduction 3 Particle Charging 15 Offensive Hacking 10 Authchip Count 10 Trap Extractor Capacity 4 Item Schematics ----------------- None Robot Schematics ------------------ None Fabricated ------------ Nothing Repaired ---------- Nothing Alien Tech Used ----------------- None Achievements -------------- None Challenges ------------ None Game ------ Seed SurgeSmallFlail Manual? 0 Play Time 00:45:29 Cumulative 357.9 hours Start 2025.10.06 @ 02:48:12 End 2025.10.06 @ 03:58:25 Sessions 9 Manual Loads 0 Difficulty Rogue Special Mode None Game No. 467 Rogue 467 Adventurer 0 Explorer 0 Win Type - Total 11 Types 6/0/1/2/1/0/1/0/0/0 Lore% 87 Gallery% 83 Achievement% 70 Wizard Run 0 Options --------- Layout 0 ASCII 0 Keyboard 0 Movement Mouse Keybinds 0 Fullscreen 1 Font 18/X11 Map View 76x50 Zoom Use 0% Tactical HUD 1 Map Filters NONE Filters NONE Steam 1 RUN: 90b7bbb2-6daf-4107-a4ec-f90cf97df17f